Workbook

Sheet Uitleg-toelichting

Sheet Agendalijst
A1: Leerlingenlijst
B4: Naam | C4: eindcijfer
A5: 1 | B5: Pablo | C5: =IF(B5<>"",'Overzicht resultaten'!C$14,"") -> 67.83333333
A6: =A5+1 -> 2 | B6: Judith | C6: =IF(B6<>"",'Overzicht resultaten'!D$14,"") -> 77.83333333
A7: =A6+1 -> 3 | C7: =IF(B7<>"",'Overzicht resultaten'!E$14,"") -> 
A8: 4 | C8: =IF(B8<>"",'Overzicht resultaten'!F$14,"") -> 
A9: 5 | C9: =IF(B9<>"",'Overzicht resultaten'!G$14,"") -> 
A10: 6 | C10: =IF(B10<>"",'Overzicht resultaten'!H$14,"") -> 
A11: 7 | C11: =IF(B11<>"",'Overzicht resultaten'!I$14,"") -> 
A12: 8 | C12: =IF(B12<>"",'Overzicht resultaten'!J$14,"") -> 
A13: 9 | C13: =IF(B13<>"",'Overzicht resultaten'!K$14,"") -> 
A14: 10 | C14: =IF(B14<>"",'Overzicht resultaten'!L$14,"") -> 
A15: 11 | C15: =IF(B15<>"",'Overzicht resultaten'!M$14,"") -> 
A16: 12 | C16: =IF(B16<>"",'Overzicht resultaten'!N$14,"") -> 
A17: 13 | C17: =IF(B17<>"",'Overzicht resultaten'!O$14,"") -> 
A18: 14 | C18: =IF(B18<>"",'Overzicht resultaten'!P$14,"") -> 
A19: 15 | C19: =IF(B19<>"",'Overzicht resultaten'!Q$14,"") -> 
A20: 16 | C20: =IF(B20<>"",'Overzicht resultaten'!R$14,"") -> 
A21: 17 | C21: =IF(B21<>"",'Overzicht resultaten'!S$14,"") -> 
A22: 18 | C22: =IF(B22<>"",'Overzicht resultaten'!T$14,"") -> 
A23: 19 | C23: =IF(B23<>"",'Overzicht resultaten'!U$14,"") -> 
A24: 20 | C24: =IF(B24<>"",'Overzicht resultaten'!V$14,"") -> 
A25: 21 | C25: =IF(B25<>"",'Overzicht resultaten'!W$14,"") -> 
A26: 22 | C26: =IF(B26<>"",'Overzicht resultaten'!X$14,"") -> 
A27: 23 | C27: =IF(B27<>"",'Overzicht resultaten'!Y$14,"") -> 
A28: 24 | C28: =IF(B28<>"",'Overzicht resultaten'!Z$14,"") -> 
A29: 25 | C29: =IF(B29<>"",'Overzicht resultaten'!AA$14,"") -> 
A30: =A29+1 -> 26 | C30: =IF(B30<>"",'Overzicht resultaten'!AB$14,"") ->  | E30: =IF(B30<>"",C30,"") -> 
A31: 27 | C31: =IF(B31<>"",'Overzicht resultaten'!AC$14,"") -> 
A32: 28 | C32: =IF(B32<>"",'Overzicht resultaten'!AD$14,"") -> 
A33: 29 | C33: =IF(B33<>"",'Overzicht resultaten'!AE$14,"") -> 
A34: =A33+1 -> 30 | C34: =IF(B34<>"",'Overzicht resultaten'!AF$14,"") -> 
A35: 31 | C35: =IF(B35<>"",'Overzicht resultaten'!AG$14,"") -> 
A36: 32 | C36: =IF(B36<>"",'Overzicht resultaten'!AH$14,"") -> 

Sheet Beoord Verslag
B1: Alle criteria | D1: gewicht per onderdeel | E1: categorie gewicht | F1: ='Overzicht resultaten'!C6 -> Pablo | G1: ='Overzicht resultaten'!D6 -> Judith | I1: ='Overzicht resultaten'!F6 ->  | J1: ='Overzicht resultaten'!G6 ->  | K1: ='Overzicht resultaten'!H6 ->  | L1: ='Overzicht resultaten'!I6 ->  | M1: ='Overzicht resultaten'!J6 ->  | N1: ='Overzicht resultaten'!K6 ->  | O1: ='Overzicht resultaten'!L6 ->  | P1: ='Overzicht resultaten'!M6 ->  | Q1: ='Overzicht resultaten'!N6 ->  | R1: ='Overzicht resultaten'!O6 ->  | S1: ='Overzicht resultaten'!P6 ->  | T1: ='Overzicht resultaten'!Q6 ->  | U1: ='Overzicht resultaten'!R6 ->  | V1: ='Overzicht resultaten'!S6 ->  | W1: ='Overzicht resultaten'!T6 ->  | X1: ='Overzicht resultaten'!U6 ->  | Y1: ='Overzicht resultaten'!V6 ->  | Z1: ='Overzicht resultaten'!W6 ->  | AA1: ='Overzicht resultaten'!X6 ->  | AB1: ='Overzicht resultaten'!Y6 ->  | AC1: ='Overzicht resultaten'!Z6 ->  | AD1: ='Overzicht resultaten'!AA6 ->  | AE1: ='Overzicht resultaten'!AB6 ->  | AF1: ='Overzicht resultaten'!AC6 ->  | AG1: ='Overzicht resultaten'!AD6 ->  | AH1: ='Overzicht resultaten'!AE6 ->  | AI1: ='Overzicht resultaten'!AF6 ->  | AJ1: ='Overzicht resultaten'!AG6 ->  | AK1: ='Overzicht resultaten'!AH6 ->  | AN1: 5
D2: gewicht (0-4) | E2: gewicht (0-4) | F2: 1 | G2: =F2+1 -> 2 | H2: 3 | I2: 4 | J2: 5 | K2: 6 | L2: 7 | M2: 8 | N2: 9 | O2: 10 | P2: 11 | Q2: 12 | R2: 13 | S2: 14 | T2: 15 | U2: 16 | V2: 17 | W2: 18 | X2: 19 | Y2: 20 | Z2: 21 | AA2: 22 | AB2: 23 | AC2: 24 | AD2: 25 | AE2: 26 | AF2: 27 | AG2: 28 | AH2: 29 | AI2: 30 | AJ2: 31 | AK2: 32 | AN2: x
C3: A. De inleiding en vraagstelling | AN3: x
C4: De leerling heeft: | AN4: x
A5: 1 | B5: 0 | C5: een haalbare CKV-onderzoeksvraag (m.b.t. een praktische activiteit en beschouwend onderzoek) geformuleerd die aan alle eisen voldoet. | D5: 2 | F5: 3 | G5: 4 | AN5: =IF(AND(D5>0,$E$4>0),"x",0) -> 0
A6: 2 | B6: 0 | C6: een beredeneerde keuze gemaakt voor een vergelijkende of verklarende hoofdvraag. | D6: 1 | F6: 5 | G6: 2 | AN6: =IF(AND(D6>0,$E$4>0),"x",0) -> 0
A7: 3 | B7: 0 | C7: relevante deelvragen geformuleerd die een antwoord op de hoofdvraag mogelijk maken. | D7: 1 | F7: 3 | G7: 3 | AN7: 0
A8: 4 | B8: 0 | C8: interessante en originele hoofd- en deelvragen geformuleerd. | D8: 1 | F8: 3 | G8: 3 | AN8: 0
A9: 5 | B9: 0 | C9: ... (criteria in te vullen door de school) | D9: 0 | AN9: 0
E10: 1 | F10: =IF(AND(SUM($D$5:$D$9)>0,$E$10>0),VALUE(SUMPRODUCT($D$5:$D$9*F5:F9)*100/(5*SUM($D$5:$D$9)))) -> 68 | G10: =IF(AND(SUM($D$5:$D$9)>0,$E$10>0),VALUE(SUMPRODUCT($D$5:$D$9*G5:G9)*100/(5*SUM($D$5:$D$9)))) -> 64 | H10: 0 | I10: 0 | J10: 0 | K10: 0 | L10: 0 | M10: 0 | N10: 0 | O10: 0 | P10: 0 | Q10: 0 | R10: 0 | S10: 0 | T10: 0 | U10: 0 | V10: 0 | W10: 0 | X10: 0 | Y10: 0 | Z10: 0 | AA10: 0 | AB10: 0 | AC10: 0 | AD10: 0 | AE10: 0 | AF10: 0 | AG10: 0 | AH10: 0 | AI10: 0 | AJ10: 0 | AK10: 0 | AN10: 0
C11: B. Zoekstrategie | AN11: 0
C12: De leerling heeft: | AN12: 0
A13: 6 | B13: 0 | C13: gekozen voor voldoende variatie in bronnen, zoals: culturele ervaringen, experimenten, personen, enquêtes, documentaires, bibliotheken, internet, recensies. | D13: 2 | F13: 3 | G13: 4 | AN13: 0
A14: 7 | B14: 0 | C14: gebruik gemaakt van zijn culturele omgeving. | D14: 2 | F14: 3 | G14: 4 | AN14: 0
A15: 8 | B15: 0 | C15: zeer relevante en consistente bronnen gekozen. | D15: 1 | F15: 3 | G15: 3 | AN15: 0
A16: 9 | B16: 0 | C16: oog voor de beschikbaarheid van bronnen. | D16: 1 | F16: 4 | G16: 4 | AN16: 0
A17: 10 | B17: 0 | C17: ... (criteria in te vullen door de school) | D17: 0 | AN17: =IF(E4>0,"x",0) -> 0
E18: 1 | F18: =IF(AND(SUM($D$13:$D$17)>0,$E$18>0),VALUE(SUMPRODUCT($D$13:$D$17*F13:F17)*100/(5*SUM($D$13:$D$17))),0) -> 63.33333333 | G18: =IF(AND(SUM($D$13:$D$17)>0,$E$18>0),VALUE(SUMPRODUCT($D$13:$D$17*G13:G17)*100/(3*SUM($D$13:$D$17))),0) -> 127.7777778 | H18: 0 | I18: 0 | J18: 0 | K18: 0 | L18: 0 | M18: 0 | N18: 0 | O18: 0 | P18: 0 | Q18: 0 | R18: 0 | S18: 0 | T18: 0 | U18: 0 | V18: 0 | W18: 0 | X18: 0 | Y18: 0 | Z18: 0 | AA18: 0 | AB18: 0 | AC18: 0 | AD18: 0 | AE18: 0 | AF18: 0 | AG18: 0 | AH18: 0 | AI18: 0 | AJ18: 0 | AK18: 0 | AN18: x
C19: C. Verwerven van informatie | AN19: =IF(AND(D19>0,$E$18>0),"x",0) -> 0
C20: De leerling heeft: | AN20: =IF(AND(D20>0,$E$18>0),"x",0) -> 0
A21: 11 | B21: 0 | C21: relevante informatie verzameld. | D21: 2 | F21: 4 | G21: 5 | AN21: x
A22: 12 | B22: 0 | C22: associatief gewerkt bij het verwerven van informatie | D22: 1 | F22: 1 | G22: 2 | AN22: x
A23: 13 | B23: 0 | C23: planmatig gewerkt bij het verwerven van informatie | D23: 1 | F23: 1 | G23: 2 | AN23: x
A24: 14 | B24: 0 | C24: de geselecteerd informatie grondig verwerkt en kritisch beoordeeld | D24: 2 | F24: 3 | G24: 2 | AN24: x
A25: 15 | B25: 0 | C25: ... (criteria in te vullen door de school) | D25: 0 | AN25: 0
E26: 1 | F26: =IF(AND(SUM($D$21:$D$25)>0,$E$26>0),VALUE(SUMPRODUCT($D$21:$D$25*F21:F25)*100/(5*SUM($D$21:$D$25))),0) -> 53.33333333 | G26: =IF(AND(SUM($D$21:$D$25)>0,$E$26>0),VALUE(SUMPRODUCT($D$21:$D$25*G21:G25)*100/(5*SUM($D$21:$D$25))),0) -> 60 | H26: 0 | I26: 0 | J26: 0 | K26: 0 | L26: 0 | M26: 0 | N26: 0 | O26: 0 | P26: 0 | Q26: 0 | R26: 0 | S26: 0 | T26: 0 | U26: 0 | V26: 0 | W26: 0 | X26: 0 | Y26: 0 | Z26: 0 | AA26: 0 | AB26: 0 | AC26: 0 | AD26: 0 | AE26: 0 | AF26: 0 | AG26: 0 | AH26: 0 | AI26: 0 | AJ26: 0 | AK26: 0 | AN26: 0
C27: D. Verwerken van de informatie | AN27: 0
C28: De leerling heeft: | AN28: 0
A29: 16 | B29: 0 | C29: de verzamelde informatie systematisch en overzichtelijk verwerkt. | D29: 1 | F29: 4 | G29: 5 | AN29: =IF(E18>0,"x",0) -> x
A30: 17 | B30: 0 | C30: de geselecteerde informatie op een bij het onderzoek passende wijze verwerkt (zoals een presentatie, tentoonstelling, verslag, debat, infographic, film of performance). | D30: 2 | F30: 4 | G30: 4 | AN30: x
A31: 18 | B31: 0 | C31: plagiaat vermeden. | D31: 1 | F31: 4 | G31: 4 | AN31: =IF(AND(D31>0,$E$30>0),"x",0) -> 0
A32: 19 | B32: 0 | C32: bronnen adequaat vermeld. | D32: 1 | F32: 2 | G32: 2 | AN32: =IF(AND(D32>0,$E$30>0),"x",0) -> 0
A33: 20 | B33: 0 | C33: ... (criteria in te vullen door de school). | D33: 0 | AN33: 0
E34: 1 | F34: =IF(AND(SUM($D$29:$D$33)>0,$E$34>0),VALUE(SUMPRODUCT($D$29:$D$33*F29:F33)*100/(5*SUM($D$29:$D$33))),0) -> 72 | G34: =IF(AND(SUM($D$29:$D$33)>0,$E$34>0),VALUE(SUMPRODUCT($D$29:$D$33*G29:G33)*100/(5*SUM($D$29:$D$33))),0) -> 76 | H34: 0 | I34: 0 | J34: 0 | K34: 0 | L34: 0 | M34: 0 | N34: 0 | O34: 0 | P34: 0 | Q34: 0 | R34: 0 | S34: 0 | T34: 0 | U34: 0 | V34: 0 | W34: 0 | X34: 0 | Y34: 0 | Z34: 0 | AA34: 0 | AB34: 0 | AC34: 0 | AD34: 0 | AE34: 0 | AF34: 0 | AG34: 0 | AH34: 0 | AI34: 0 | AJ34: 0 | AK34: 0 | AN34: 0
C35: E. Presentatie | AN35: 0
C36: De leerling heeft: | AN36: 0
A37: 21 | B37: 0 | C37: een afdoende antwoord gegeven op hoofd- en deelvragen. | D37: 2 | F37: 5 | G37: 4 | AN37: 0
A38: 22 | B38: 0 | C38: zijn conclusies met argumenten onderbouwd. | D38: 2 | F38: 3 | G38: 3 | AN38: 0
A39: 23 | B39: 0 | C39: gezorgd voor een presentatie die past bij het onderzoek. | D39: 2 | F39: 3 | G39: 2 | AN39: 0
A40: 24 | B40: 0 | C40: bij het presenteren rekening gehouden met zijn doelgroep. | D40: 1 | F40: 3 | G40: 3 | AN40: 0
A41: 25 | B41: 0 | C41: een aantrekkelijke, originele en overtuigende manier van presenteren. | D41: 2 | F41: 3 | G41: 4 | AN41: 0
A42: 26 | B42: 0 | C42: ... (criteria in te vullen door de school). | D42: 0 | AN42: =IF(E30>0,"x",0) -> 0
E43: 1 | F43: =IF(AND(SUM($D$37:$D$42)>0,$E$43>0),VALUE(SUMPRODUCT($D$37:$D$42*F37:F42)*100/(5*SUM($D$37:$D$43))),0) -> 68.88888889 | G43: =IF(AND(SUM($D$37:$D$42)>0,$E$43>0),VALUE(SUMPRODUCT($D$37:$D$42*G37:G42)*100/(5*SUM($D$37:$D$43))),0) -> 64.44444444 | H43: 0 | I43: 0 | J43: 0 | K43: 0 | L43: 0 | M43: 0 | N43: 0 | O43: 0 | P43: 0 | Q43: 0 | R43: 0 | S43: 0 | T43: 0 | U43: 0 | V43: 0 | W43: 0 | X43: 0 | Y43: 0 | Z43: 0 | AA43: 0 | AB43: 0 | AC43: 0 | AD43: 0 | AE43: 0 | AF43: 0 | AG43: 0 | AH43: 0 | AI43: 0 | AJ43: 0 | AK43: 0 | AN43: x
C44: F. Evaluatie | AN44: =IF(AND(D44>0,$E$43>0),"x",0) -> 0
C45: De leerling heeft: | AN45: =IF(AND(D45>0,$E$43>0),"x",0) -> 0
A46: 27 | B46: 0 | C46: het resultaat van het onderzoek geëvalueerd (product). | D46: 2 | F46: 2 | G46: 3 | AN46: x
A47: 28 | B47: 0 | C47: het onderzoeksproces geëvalueerd (proces). | D47: 2 | F47: 5 | G47: 4 | AN47: x
A48: 29 | B48: 0 | C48: verbanden gelegd tussen opgedane ervaringen en inzichten met betrekking tot processen binnen de context van kunst (CKV-leerproces). | D48: 1 | F48: 2 | G48: 2 | AN48: x
A49: 30 | B49: 0 | C49: suggesties gedaan voor vervolgonderzoek. | D49: 1 | F49: 2 | G49: 2 | AN49: =IF(E43>0,"x",0) -> x
A50: 31 | B50: 0 | C50: ... (criteria in te vullen door de school). | D50: 0 | AN50: x
E51: 1 | F51: =IF(AND(SUM($D$46:$D$50)>0,$E$51>0),VALUE(SUMPRODUCT($D$46:$D$50*F46:F50)*100/(5*SUM($D$46:$D$50))),0) -> 60 | G51: =IF(AND(SUM($D$46:$D$50)>0,$E$51>0),VALUE(SUMPRODUCT($D$46:$D$50*G46:G50)*100/(5*SUM($D$46:$D$50))),0) -> 60 | H51: 0 | I51: 0 | J51: 0 | K51: 0 | L51: 0 | M51: 0 | N51: 0 | O51: 0 | P51: 0 | Q51: 0 | R51: 0 | S51: 0 | T51: 0 | U51: 0 | V51: 0 | W51: 0 | X51: 0 | Y51: 0 | Z51: 0 | AA51: 0 | AB51: 0 | AC51: 0 | AD51: 0 | AE51: 0 | AF51: 0 | AG51: 0 | AH51: 0 | AI51: 0 | AJ51: 0 | AK51: 0 | AN51: =IF(AND(D51>0,$E$50>0),"x",0) -> 0

Sheet Overzicht resultaten
A3: Overzicht resultaten: hier niets invullen!
C5: 1 | D5: =C5+1 -> 2 | E5: =D5+1 -> 3 | F5: 4 | G5: 5 | H5: 6 | I5: 7 | J5: 8 | K5: 9 | L5: 10 | M5: 11 | N5: 12 | O5: 13 | P5: 14 | Q5: 15 | R5: 16 | S5: 17 | T5: 18 | U5: 19 | V5: 20 | W5: 21 | X5: 22 | Y5: 23 | Z5: 24 | AA5: 25 | AB5: 26 | AC5: 27 | AD5: 28 | AE5: 29 | AF5: 30 | AG5: =AF5+1 -> 31 | AH5: 32
A6: weging | B6: categorie | C6: =IF(Agendalijst!B5="","",Agendalijst!B5) -> Pablo | D6: =IF(Agendalijst!B6="","",Agendalijst!B6) -> Judith | E6: =IF(Agendalijst!B7="","",Agendalijst!B7) ->  | F6: =IF(Agendalijst!B8="","",Agendalijst!B8) ->  | G6: =IF(Agendalijst!B9="","",Agendalijst!B9) ->  | H6: =IF(Agendalijst!B10="","",Agendalijst!B10) ->  | I6: =IF(Agendalijst!B11="","",Agendalijst!B11) ->  | J6: =IF(Agendalijst!B12="","",Agendalijst!B12) ->  | K6: =IF(Agendalijst!B13="","",Agendalijst!B13) ->  | L6: =IF(Agendalijst!B14="","",Agendalijst!B14) ->  | M6: =IF(Agendalijst!B15="","",Agendalijst!B15) ->  | N6: =IF(Agendalijst!B16="","",Agendalijst!B16) ->  | O6: =IF(Agendalijst!B17="","",Agendalijst!B17) ->  | P6: =IF(Agendalijst!B18="","",Agendalijst!B18) ->  | Q6: =IF(Agendalijst!B19="","",Agendalijst!B19) ->  | R6: =IF(Agendalijst!B20="","",Agendalijst!B20) ->  | S6: =IF(Agendalijst!B21="","",Agendalijst!B21) ->  | T6: =IF(Agendalijst!B22="","",Agendalijst!B22) ->  | U6: =IF(Agendalijst!B23="","",Agendalijst!B23) ->  | V6: =IF(Agendalijst!B24="","",Agendalijst!B24) ->  | W6: =IF(Agendalijst!B25="","",Agendalijst!B25) ->  | X6: =IF(Agendalijst!B26="","",Agendalijst!B26) ->  | Y6: =IF(Agendalijst!B27="","",Agendalijst!B27) ->  | Z6: =IF(Agendalijst!B28="","",Agendalijst!B28) ->  | AA6: =IF(Agendalijst!B29="","",Agendalijst!B29) ->  | AB6: =IF(Agendalijst!B30="","",Agendalijst!B30) ->  | AC6: =IF(Agendalijst!B31="","",Agendalijst!B31) ->  | AD6: =IF(Agendalijst!B32="","",Agendalijst!B32) ->  | AE6: =IF(Agendalijst!B33="","",Agendalijst!B33) ->  | AF6: =IF(Agendalijst!B34="","",Agendalijst!B34) ->  | AG6: =IF(Agendalijst!B35="","",Agendalijst!B35) ->  | AH6: =IF(Agendalijst!B36="","",Agendalijst!B36) ->  | AJ6: gemiddelde klas
A7: ='Beoord Verslag'!E10 -> 1 | B7: ='Beoord Verslag'!C3 -> A. De inleiding en vraagstelling | C7: =IF(AND($A7>0,C6<>""),'Beoord Verslag'!F10,"") -> 68 | D7: =IF(AND($A7>0,D6<>""),'Beoord Verslag'!G10,"") -> 64 | E7: =IF(AND($A7>0,E6<>""),'Beoord Verslag'!H10,"") ->  | F7: =IF(AND($A7>0,F6<>""),'Beoord Verslag'!I10,"") ->  | G7: =IF(AND($A7>0,G6<>""),'Beoord Verslag'!J10,"") ->  | H7: =IF(AND($A7>0,H6<>""),'Beoord Verslag'!K10,"") ->  | I7: =IF(AND($A7>0,I6<>""),'Beoord Verslag'!L10,"") ->  | J7: =IF(AND($A7>0,J6<>""),'Beoord Verslag'!M10,"") ->  | K7: =IF(AND($A7>0,K6<>""),'Beoord Verslag'!N10,"") ->  | L7: =IF(AND($A7>0,L6<>""),'Beoord Verslag'!O10,"") ->  | M7: =IF(AND($A7>0,M6<>""),'Beoord Verslag'!P10,"") ->  | N7: =IF(AND($A7>0,N6<>""),'Beoord Verslag'!Q10,"") ->  | O7: =IF(AND($A7>0,O6<>""),'Beoord Verslag'!R10,"") ->  | P7: =IF(AND($A7>0,P6<>""),'Beoord Verslag'!S10,"") ->  | Q7: =IF(AND($A7>0,Q6<>""),'Beoord Verslag'!T10,"") ->  | R7: =IF(AND($A7>0,R6<>""),'Beoord Verslag'!U10,"") ->  | S7: =IF(AND($A7>0,S6<>""),'Beoord Verslag'!V10,"") ->  | T7: =IF(AND($A7>0,T6<>""),'Beoord Verslag'!W10,"") ->  | U7: =IF(AND($A7>0,U6<>""),'Beoord Verslag'!X10,"") ->  | V7: =IF(AND($A7>0,V6<>""),'Beoord Verslag'!Y10,"") ->  | W7: =IF(AND($A7>0,W6<>""),'Beoord Verslag'!Z10,"") ->  | X7: =IF(AND($A7>0,X6<>""),'Beoord Verslag'!AA10,"") ->  | Y7: =IF(AND($A7>0,Y6<>""),'Beoord Verslag'!AB10,"") ->  | Z7: =IF(AND($A7>0,Z6<>""),'Beoord Verslag'!AC10,"") ->  | AA7: =IF(AND($A7>0,AA6<>""),'Beoord Verslag'!AD10,"") ->  | AB7: =IF(AND($A7>0,AB6<>""),'Beoord Verslag'!AE10,"") ->  | AC7: =IF(AND($A7>0,AC6<>""),'Beoord Verslag'!AF10,"") ->  | AD7: =IF(AND($A7>0,AD6<>""),'Beoord Verslag'!AG10,"") ->  | AE7: =IF(AND($A7>0,AE6<>""),'Beoord Verslag'!AH10,"") ->  | AF7: =IF(AND($A7>0,AF6<>""),'Beoord Verslag'!AI10,"") ->  | AG7: =IF(AND($A7>0,AG6<>""),'Beoord Verslag'!AJ10,"") ->  | AH7: =IF(AND($A7>0,AH6<>""),'Beoord Verslag'!AK10,"") ->  | AJ7: =IF(A7>0,AVERAGE(C7:AH7),"-") -> 66
A8: ='Beoord Verslag'!E18 -> 1 | B8: ='Beoord Verslag'!C11 -> B. Zoekstrategie | C8: =IF(AND($A8>0,C6<>""),'Beoord Verslag'!F18,"") -> 63.33333333 | D8: =IF(AND($A8>0,D6<>""),'Beoord Verslag'!G18,"") -> 127.7777778 | E8: =IF(AND($A8>0,E6<>""),'Beoord Verslag'!H18,"") ->  | F8: =IF(AND($A8>0,F6<>""),'Beoord Verslag'!I18,"") ->  | G8: =IF(AND($A8>0,G6<>""),'Beoord Verslag'!J18,"") ->  | H8: =IF(AND($A8>0,H6<>""),'Beoord Verslag'!K18,"") ->  | I8: =IF(AND($A8>0,I6<>""),'Beoord Verslag'!L18,"") ->  | J8: =IF(AND($A8>0,J6<>""),'Beoord Verslag'!M18,"") ->  | K8: =IF(AND($A8>0,K6<>""),'Beoord Verslag'!N18,"") ->  | L8: =IF(AND($A8>0,L6<>""),'Beoord Verslag'!O18,"") ->  | M8: =IF(AND($A8>0,M6<>""),'Beoord Verslag'!P18,"") ->  | N8: =IF(AND($A8>0,N6<>""),'Beoord Verslag'!Q18,"") ->  | O8: =IF(AND($A8>0,O6<>""),'Beoord Verslag'!R18,"") ->  | P8: =IF(AND($A8>0,P6<>""),'Beoord Verslag'!S18,"") ->  | Q8: =IF(AND($A8>0,Q6<>""),'Beoord Verslag'!T18,"") ->  | R8: =IF(AND($A8>0,R6<>""),'Beoord Verslag'!U18,"") ->  | S8: =IF(AND($A8>0,S6<>""),'Beoord Verslag'!V18,"") ->  | T8: =IF(AND($A8>0,T6<>""),'Beoord Verslag'!W18,"") ->  | U8: =IF(AND($A8>0,U6<>""),'Beoord Verslag'!X18,"") ->  | V8: =IF(AND($A8>0,V6<>""),'Beoord Verslag'!Y18,"") ->  | W8: =IF(AND($A8>0,W6<>""),'Beoord Verslag'!Z18,"") ->  | X8: =IF(AND($A8>0,X6<>""),'Beoord Verslag'!AA18,"") ->  | Y8: =IF(AND($A8>0,Y6<>""),'Beoord Verslag'!AB18,"") ->  | Z8: =IF(AND($A8>0,Z6<>""),'Beoord Verslag'!AC18,"") ->  | AA8: =IF(AND($A8>0,AA6<>""),'Beoord Verslag'!AD18,"") ->  | AB8: =IF(AND($A8>0,AB6<>""),'Beoord Verslag'!AE18,"") ->  | AC8: =IF(AND($A8>0,AC6<>""),'Beoord Verslag'!AF18,"") ->  | AD8: =IF(AND($A8>0,AD6<>""),'Beoord Verslag'!AG18,"") ->  | AE8: =IF(AND($A8>0,AE6<>""),'Beoord Verslag'!AH18,"") ->  | AF8: =IF(AND($A8>0,AF6<>""),'Beoord Verslag'!AI18,"") ->  | AG8: =IF(AND($A8>0,AG6<>""),'Beoord Verslag'!AJ18,"") ->  | AH8: =IF(AND($A8>0,AH6<>""),'Beoord Verslag'!AK18,"") ->  | AJ8: =IF(A8>0,AVERAGE(C8:AH8),"-") -> 95.55555556
A9: ='Beoord Verslag'!E26 -> 1 | B9: ='Beoord Verslag'!C19 -> C. Verwerven van informatie | C9: =IF(AND($A9>0,C6<>""),'Beoord Verslag'!F26,"") -> 53.33333333 | D9: =IF(AND($A9>0,D6<>""),'Beoord Verslag'!G26,"") -> 60 | E9: =IF(AND($A9>0,E6<>""),'Beoord Verslag'!H26,"") ->  | F9: =IF(AND($A9>0,F6<>""),'Beoord Verslag'!I26,"") ->  | G9: =IF(AND($A9>0,G6<>""),'Beoord Verslag'!J26,"") ->  | H9: =IF(AND($A9>0,H6<>""),'Beoord Verslag'!K26,"") ->  | I9: =IF(AND($A9>0,I6<>""),'Beoord Verslag'!L26,"") ->  | J9: =IF(AND($A9>0,J6<>""),'Beoord Verslag'!M26,"") ->  | K9: =IF(AND($A9>0,K6<>""),'Beoord Verslag'!N26,"") ->  | L9: =IF(AND($A9>0,L6<>""),'Beoord Verslag'!O26,"") ->  | M9: =IF(AND($A9>0,M6<>""),'Beoord Verslag'!P26,"") ->  | N9: =IF(AND($A9>0,N6<>""),'Beoord Verslag'!Q26,"") ->  | O9: =IF(AND($A9>0,O6<>""),'Beoord Verslag'!R26,"") ->  | P9: =IF(AND($A9>0,P6<>""),'Beoord Verslag'!S26,"") ->  | Q9: =IF(AND($A9>0,Q6<>""),'Beoord Verslag'!T26,"") ->  | R9: =IF(AND($A9>0,R6<>""),'Beoord Verslag'!U26,"") ->  | S9: =IF(AND($A9>0,S6<>""),'Beoord Verslag'!V26,"") ->  | T9: =IF(AND($A9>0,T6<>""),'Beoord Verslag'!W26,"") ->  | U9: =IF(AND($A9>0,U6<>""),'Beoord Verslag'!X26,"") ->  | V9: =IF(AND($A9>0,V6<>""),'Beoord Verslag'!Y26,"") ->  | W9: =IF(AND($A9>0,W6<>""),'Beoord Verslag'!Z26,"") ->  | X9: =IF(AND($A9>0,X6<>""),'Beoord Verslag'!AA26,"") ->  | Y9: =IF(AND($A9>0,Y6<>""),'Beoord Verslag'!AB26,"") ->  | Z9: =IF(AND($A9>0,Z6<>""),'Beoord Verslag'!AC26,"") ->  | AA9: =IF(AND($A9>0,AA6<>""),'Beoord Verslag'!AD26,"") ->  | AB9: =IF(AND($A9>0,AB6<>""),'Beoord Verslag'!AE26,"") ->  | AC9: =IF(AND($A9>0,AC6<>""),'Beoord Verslag'!AF26,"") ->  | AD9: =IF(AND($A9>0,AD6<>""),'Beoord Verslag'!AG26,"") ->  | AE9: =IF(AND($A9>0,AE6<>""),'Beoord Verslag'!AH26,"") ->  | AF9: =IF(AND($A9>0,AF6<>""),'Beoord Verslag'!AI26,"") ->  | AG9: =IF(AND($A9>0,AG6<>""),'Beoord Verslag'!AJ26,"") ->  | AH9: =IF(AND($A9>0,AH6<>""),'Beoord Verslag'!AK26,"") ->  | AJ9: 56.66666667
A10: ='Beoord Verslag'!E34 -> 1 | B10: ='Beoord Verslag'!C27 -> D. Verwerken van de informatie | C10: =IF(AND($A10>0,C6<>""),'Beoord Verslag'!F34,"") -> 72 | D10: =IF(AND($A10>0,D6<>""),'Beoord Verslag'!G34,"") -> 76 | E10: =IF(AND($A10>0,E6<>""),'Beoord Verslag'!H34,"") ->  | F10: =IF(AND($A10>0,F6<>""),'Beoord Verslag'!I34,"") ->  | G10: =IF(AND($A10>0,G6<>""),'Beoord Verslag'!J34,"") ->  | H10: =IF(AND($A10>0,H6<>""),'Beoord Verslag'!K34,"") ->  | I10: =IF(AND($A10>0,I6<>""),'Beoord Verslag'!L34,"") ->  | J10: =IF(AND($A10>0,J6<>""),'Beoord Verslag'!M34,"") ->  | K10: =IF(AND($A10>0,K6<>""),'Beoord Verslag'!N34,"") ->  | L10: =IF(AND($A10>0,L6<>""),'Beoord Verslag'!O34,"") ->  | M10: =IF(AND($A10>0,M6<>""),'Beoord Verslag'!P34,"") ->  | N10: =IF(AND($A10>0,N6<>""),'Beoord Verslag'!Q34,"") ->  | O10: =IF(AND($A10>0,O6<>""),'Beoord Verslag'!R34,"") ->  | P10: =IF(AND($A10>0,P6<>""),'Beoord Verslag'!S34,"") ->  | Q10: =IF(AND($A10>0,Q6<>""),'Beoord Verslag'!T34,"") ->  | R10: =IF(AND($A10>0,R6<>""),'Beoord Verslag'!U34,"") ->  | S10: =IF(AND($A10>0,S6<>""),'Beoord Verslag'!V34,"") ->  | T10: =IF(AND($A10>0,T6<>""),'Beoord Verslag'!W34,"") ->  | U10: =IF(AND($A10>0,U6<>""),'Beoord Verslag'!X34,"") ->  | V10: =IF(AND($A10>0,V6<>""),'Beoord Verslag'!Y34,"") ->  | W10: =IF(AND($A10>0,W6<>""),'Beoord Verslag'!Z34,"") ->  | X10: =IF(AND($A10>0,X6<>""),'Beoord Verslag'!AA34,"") ->  | Y10: =IF(AND($A10>0,Y6<>""),'Beoord Verslag'!AB34,"") ->  | Z10: =IF(AND($A10>0,Z6<>""),'Beoord Verslag'!AC34,"") ->  | AA10: =IF(AND($A10>0,AA6<>""),'Beoord Verslag'!AD34,"") ->  | AB10: =IF(AND($A10>0,AB6<>""),'Beoord Verslag'!AE34,"") ->  | AC10: =IF(AND($A10>0,AC6<>""),'Beoord Verslag'!AF34,"") ->  | AD10: =IF(AND($A10>0,AD6<>""),'Beoord Verslag'!AG34,"") ->  | AE10: =IF(AND($A10>0,AE6<>""),'Beoord Verslag'!AH34,"") ->  | AF10: =IF(AND($A10>0,AF6<>""),'Beoord Verslag'!AI34,"") ->  | AG10: =IF(AND($A10>0,AG6<>""),'Beoord Verslag'!AJ34,"") ->  | AH10: =IF(AND($A10>0,AH6<>""),'Beoord Verslag'!AK34,"") ->  | AJ10: 74
A11: ='Beoord Verslag'!E43 -> 1 | B11: ='Beoord Verslag'!C35 -> E. Presentatie | C11: =IF(AND($A11>0,C6<>""),'Beoord Verslag'!F43,"") -> 68.88888889 | D11: =IF(AND($A11>0,D6<>""),'Beoord Verslag'!G43,"") -> 64.44444444 | E11: =IF(AND($A11>0,E6<>""),'Beoord Verslag'!H43,"") ->  | F11: =IF(AND($A11>0,F6<>""),'Beoord Verslag'!I43,"") ->  | G11: =IF(AND($A11>0,G6<>""),'Beoord Verslag'!J43,"") ->  | H11: =IF(AND($A11>0,H6<>""),'Beoord Verslag'!K43,"") ->  | I11: =IF(AND($A11>0,I6<>""),'Beoord Verslag'!L43,"") ->  | J11: =IF(AND($A11>0,J6<>""),'Beoord Verslag'!M43,"") ->  | K11: =IF(AND($A11>0,K6<>""),'Beoord Verslag'!N43,"") ->  | L11: =IF(AND($A11>0,L6<>""),'Beoord Verslag'!O43,"") ->  | M11: =IF(AND($A11>0,M6<>""),'Beoord Verslag'!P43,"") ->  | N11: =IF(AND($A11>0,N6<>""),'Beoord Verslag'!Q43,"") ->  | O11: =IF(AND($A11>0,O6<>""),'Beoord Verslag'!R43,"") ->  | P11: =IF(AND($A11>0,P6<>""),'Beoord Verslag'!S43,"") ->  | Q11: =IF(AND($A11>0,Q6<>""),'Beoord Verslag'!T43,"") ->  | R11: =IF(AND($A11>0,R6<>""),'Beoord Verslag'!U43,"") ->  | S11: =IF(AND($A11>0,S6<>""),'Beoord Verslag'!V43,"") ->  | T11: =IF(AND($A11>0,T6<>""),'Beoord Verslag'!W43,"") ->  | U11: =IF(AND($A11>0,U6<>""),'Beoord Verslag'!X43,"") ->  | V11: =IF(AND($A11>0,V6<>""),'Beoord Verslag'!Y43,"") ->  | W11: =IF(AND($A11>0,W6<>""),'Beoord Verslag'!Z43,"") ->  | X11: =IF(AND($A11>0,X6<>""),'Beoord Verslag'!AA43,"") ->  | Y11: =IF(AND($A11>0,Y6<>""),'Beoord Verslag'!AB43,"") ->  | Z11: =IF(AND($A11>0,Z6<>""),'Beoord Verslag'!AC43,"") ->  | AA11: =IF(AND($A11>0,AA6<>""),'Beoord Verslag'!AD43,"") ->  | AB11: =IF(AND($A11>0,AB6<>""),'Beoord Verslag'!AE43,"") ->  | AC11: =IF(AND($A11>0,AC6<>""),'Beoord Verslag'!AF43,"") ->  | AD11: =IF(AND($A11>0,AD6<>""),'Beoord Verslag'!AG43,"") ->  | AE11: =IF(AND($A11>0,AE6<>""),'Beoord Verslag'!AH43,"") ->  | AF11: =IF(AND($A11>0,AF6<>""),'Beoord Verslag'!AI43,"") ->  | AG11: =IF(AND($A11>0,AG6<>""),'Beoord Verslag'!AJ43,"") ->  | AH11: =IF(AND($A11>0,AH6<>""),'Beoord Verslag'!AK43,"") ->  | AJ11: 66.66666667
A12: ='Beoord Verslag'!E51 -> 1 | B12: ='Beoord Verslag'!C44 -> F. Evaluatie | C12: =IF(AND($A12>0,C6<>""),'Beoord Verslag'!F51,"") -> 60 | D12: =IF(AND($A12>0,D6<>""),'Beoord Verslag'!G51,"") -> 60 | E12: =IF(AND($A12>0,E6<>""),'Beoord Verslag'!H51,"") ->  | F12: =IF(AND($A12>0,F6<>""),'Beoord Verslag'!I51,"") ->  | G12: =IF(AND($A12>0,G6<>""),'Beoord Verslag'!J51,"") ->  | H12: =IF(AND($A12>0,H6<>""),'Beoord Verslag'!K51,"") ->  | I12: =IF(AND($A12>0,I6<>""),'Beoord Verslag'!L51,"") ->  | J12: =IF(AND($A12>0,J6<>""),'Beoord Verslag'!M51,"") ->  | K12: =IF(AND($A12>0,K6<>""),'Beoord Verslag'!N51,"") ->  | L12: =IF(AND($A12>0,L6<>""),'Beoord Verslag'!O51,"") ->  | M12: =IF(AND($A12>0,M6<>""),'Beoord Verslag'!P51,"") ->  | N12: =IF(AND($A12>0,N6<>""),'Beoord Verslag'!Q51,"") ->  | O12: =IF(AND($A12>0,O6<>""),'Beoord Verslag'!R51,"") ->  | P12: =IF(AND($A12>0,P6<>""),'Beoord Verslag'!S51,"") ->  | Q12: =IF(AND($A12>0,Q6<>""),'Beoord Verslag'!T51,"") ->  | R12: =IF(AND($A12>0,R6<>""),'Beoord Verslag'!U51,"") ->  | S12: =IF(AND($A12>0,S6<>""),'Beoord Verslag'!V51,"") ->  | T12: =IF(AND($A12>0,T6<>""),'Beoord Verslag'!W51,"") ->  | U12: =IF(AND($A12>0,U6<>""),'Beoord Verslag'!X51,"") ->  | V12: =IF(AND($A12>0,V6<>""),'Beoord Verslag'!Y51,"") ->  | W12: =IF(AND($A12>0,W6<>""),'Beoord Verslag'!Z51,"") ->  | X12: =IF(AND($A12>0,X6<>""),'Beoord Verslag'!AA51,"") ->  | Y12: =IF(AND($A12>0,Y6<>""),'Beoord Verslag'!AB51,"") ->  | Z12: =IF(AND($A12>0,Z6<>""),'Beoord Verslag'!AC51,"") ->  | AA12: =IF(AND($A12>0,AA6<>""),'Beoord Verslag'!AD51,"") ->  | AB12: =IF(AND($A12>0,AB6<>""),'Beoord Verslag'!AE51,"") ->  | AC12: =IF(AND($A12>0,AC6<>""),'Beoord Verslag'!AF51,"") ->  | AD12: =IF(AND($A12>0,AD6<>""),'Beoord Verslag'!AG51,"") ->  | AE12: =IF(AND($A12>0,AE6<>""),'Beoord Verslag'!AH51,"") ->  | AF12: =IF(AND($A12>0,AF6<>""),'Beoord Verslag'!AI51,"") ->  | AG12: =IF(AND($A12>0,AG6<>""),'Beoord Verslag'!AJ51,"") ->  | AH12: =IF(AND($A12>0,AH6<>""),'Beoord Verslag'!AK51,"") ->  | AJ12: 60
B13: eind(%) | C13: =IF(C6<>"",(SUMPRODUCT($A$7:$A$12,C7:C12))/SUM($A$7:$A$12),"") -> 64.25925926 | D13: 75.37037037 | AJ13: =AVERAGE(C13:AH13) -> 69.81481481
B14: cijfer | C14: =IF(C6<>"",((SUMPRODUCT($A$7:$A$12,C7:C12)*0.9)/SUM($A$7:$A$12)+10),"") -> 67.83333333 | D14: 77.83333333 | AJ14: =AVERAGE(C14:AH14) -> 72.83333333
C27: kies leerling: | E27: 1
